[Event "Titled Tuesday Blitz March 14 Early 2023"]
[White "Buksa, Nataliya"]
[Black "Daneshvar, Bardiya"]
[WhiteFideId "14123622"]
[BlackFideId "12576468"]
[WhiteElo "2316"]
[BlackElo "2468"]
[Result "0-1"]
[Round "05"]
[TimeControl "180+2"]
[Date "2023.03.14"]
[WhiteClock "0:00:30"]
[BlackClock "0:02:09"]

1. d4 {[%clk 0:02:57]}  b6 {[%clk 0:02:58]} 2. Nc3 {[%clk 0:02:56]}  Bb7 {[%clk 0:02:56]} 3. e4 {[%clk 0:02:57]}  e6 {[%clk 0:02:54]} 4. a3 {[%clk 0:02:56]}  Nf6 {[%clk 0:02:51]} 5. e5 {[%clk 0:02:55]}  Nd5 {[%clk 0:02:50]} 6. Nxd5 {[%clk 0:02:55]}  Bxd5 {[%clk 0:02:50]} 7. c4 {[%clk 0:02:56]}  Bb7 {[%clk 0:02:50]} 8. Nf3 {[%clk 0:02:56]}  d6 {[%clk 0:02:50]} 9. Be2 {[%clk 0:02:55]}  dxe5 {[%clk 0:02:49]} 10. dxe5 {[%clk 0:02:55]}  Qxd1+ {[%clk 0:02:49]} 11. Bxd1 {[%clk 0:02:56]}  Nc6 {[%clk 0:02:39]} 12. O-O {[%clk 0:02:51]}  O-O-O {[%clk 0:02:39]} 13. Be3 {[%clk 0:02:49]}  Bc5 {[%clk 0:02:38]} 14. b4 {[%clk 0:02:02]}  Bxe3 {[%clk 0:02:30]} 15. fxe3 {[%clk 0:02:03]}  h6 {[%clk 0:02:25]} 16. Bc2 {[%clk 0:02:01]}  a5 {[%clk 0:02:23]} 17. b5 {[%clk 0:01:56]}  Nb8 {[%clk 0:02:21]} 18. Nd4 {[%clk 0:01:55]}  Rhf8 {[%clk 0:02:17]} 19. Rad1 {[%clk 0:01:36]}  Nd7 {[%clk 0:02:16]} 20. Nf3 {[%clk 0:01:25]}  Bxf3 {[%clk 0:02:12]} 21. gxf3 {[%clk 0:01:23]}  Nxe5 {[%clk 0:02:12]} 22. c5 {[%clk 0:01:00]}  bxc5 {[%clk 0:02:11]} 23. a4 {[%clk 0:00:50]}  Nc4 {[%clk 0:02:09]} 24. Be4 {[%clk 0:00:37]}  Nxe3 {[%clk 0:02:06]} 25. Rxd8+ {[%clk 0:00:37]}  Rxd8 {[%clk 0:02:07]} 26. Rc1 {[%clk 0:00:35]}  Rd1+ {[%clk 0:02:08]} 27. Rxd1 {[%clk 0:00:35]}  Nxd1 {[%clk 0:02:09]} 28. Kf1 {[%clk 0:00:35]}  Nc3 {[%clk 0:02:06]} 29. Bc2 {[%clk 0:00:35]}  Kd7 {[%clk 0:02:06]} 30. Ke1 {[%clk 0:00:36]}  Kd6 {[%clk 0:02:06]} 31. Kd2 {[%clk 0:00:36]}  Nd5 {[%clk 0:02:04]} 32. Bd3 {[%clk 0:00:34]}  Nb6 {[%clk 0:02:04]} 33. Bc2 {[%clk 0:00:33]}  c4 {[%clk 0:02:04]} 34. Kc3 {[%clk 0:00:33]}  Kc5 {[%clk 0:02:05]} 35. Bd1 {[%clk 0:00:32]}  Nd5+ {[%clk 0:02:05]} 36. Kd2 {[%clk 0:00:32]}  Kd4 {[%clk 0:02:06]} 37. Bc2 {[%clk 0:00:31]}  Nb6 {[%clk 0:02:07]} 38. Bd1 {[%clk 0:00:30]}  c3+ {[%clk 0:02:08]} 39. Kc1 {[%clk 0:00:31]}  Nc4 {[%clk 0:02:09]} 40. Bb3 {[%clk 0:00:30]}  Nd2 {[%clk 0:02:09]} 41. Bc2 {[%clk 0:00:30]}  Nxf3 {[%clk 0:02:09]} 0-1


[Site "https://www.chess.com"]

[Event "Titled Tuesday Blitz March 14 Early 2023"]
[White "Safin, Robert"]
[Black "Postny, Evgeny"]
[WhiteFideId "34189120"]
[BlackFideId "2804344"]
[WhiteElo "2245"]
[BlackElo "2509"]
[Result "1-0"]
[Round "05"]
[TimeControl "180+2"]
[Date "2023.03.14"]
[WhiteClock "0:00:09"]
[BlackClock "0:01:03"]

1. e4 {[%clk 0:03:00]}  c5 {[%clk 0:02:59]} 2. c3 {[%clk 0:03:00]}  b6 {[%clk 0:02:58]} 3. d4 {[%clk 0:03:00]}  Bb7 {[%clk 0:02:58]} 4. Bd3 {[%clk 0:02:57]}  g6 {[%clk 0:02:58]} 5. Nf3 {[%clk 0:02:51]}  Bg7 {[%clk 0:02:59]} 6. O-O {[%clk 0:02:50]}  Nf6 {[%clk 0:02:58]} 7. e5 {[%clk 0:02:44]}  Nd5 {[%clk 0:02:57]} 8. dxc5 {[%clk 0:02:18]}  bxc5 {[%clk 0:02:47]} 9. Be4 {[%clk 0:02:18]}  Ne3 {[%clk 0:02:45]} 10. Qd3 {[%clk 0:02:11]}  Bxe4 {[%clk 0:02:42]} 11. Qxe4 {[%clk 0:02:11]}  Nxf1 {[%clk 0:02:42]} 12. Qxa8 {[%clk 0:02:10]}  Nxh2 {[%clk 0:02:21]} 13. Kxh2 {[%clk 0:02:05]}  O-O {[%clk 0:02:20]} 14. Nbd2 {[%clk 0:01:51]}  Qc7 {[%clk 0:02:16]} 15. Qe4 {[%clk 0:01:49]}  Nc6 {[%clk 0:02:13]} 16. Nc4 {[%clk 0:01:43]}  f5 {[%clk 0:02:12]} 17. Qd5+ {[%clk 0:01:27]}  Kh8 {[%clk 0:02:09]} 18. Bf4 {[%clk 0:01:21]}  Nd8 {[%clk 0:02:05]} 19. Rd1 {[%clk 0:01:04]}  Ne6 {[%clk 0:02:05]} 20. g3 {[%clk 0:01:02]}  Rd8 {[%clk 0:02:03]} 21. Ng5 {[%clk 0:00:58]}  Nxg5 {[%clk 0:02:03]} 22. Bxg5 {[%clk 0:00:59]}  Bf8 {[%clk 0:01:52]} 23. Qf7 {[%clk 0:00:25]}  Qc6 {[%clk 0:01:52]} 24. Bxe7 {[%clk 0:00:22]}  Bxe7 {[%clk 0:01:51]} 25. Qxe7 {[%clk 0:00:23]}  Qa8 {[%clk 0:01:46]} 26. Nd6 {[%clk 0:00:18]}  Kg8 {[%clk 0:01:40]} 27. Qf7+ {[%clk 0:00:16]}  Kh8 {[%clk 0:01:40]} 28. Rd2 {[%clk 0:00:15]}  Rf8 {[%clk 0:01:39]} 29. Qe7 {[%clk 0:00:15]}  Kg8 {[%clk 0:01:34]} 30. Qxd7 {[%clk 0:00:13]}  Qf3 {[%clk 0:01:33]} 31. Qe6+ {[%clk 0:00:13]}  Kh8 {[%clk 0:01:26]} 32. Qd5 {[%clk 0:00:13]}  Qh5+ {[%clk 0:01:24]} 33. Kg1 {[%clk 0:00:12]}  f4 {[%clk 0:01:25]} 34. e6 {[%clk 0:00:09]}  Qh3 {[%clk 0:01:11]} 35. e7 {[%clk 0:00:07]}  Rb8 {[%clk 0:01:10]} 36. e8=Q+ {[%clk 0:00:07]}  Rxe8 {[%clk 0:01:10]} 37. Nxe8 {[%clk 0:00:07]}  Qh6 {[%clk 0:01:01]} 38. Qe5+ {[%clk 0:00:07]}  Kg8 {[%clk 0:01:02]} 39. Qg7+ {[%clk 0:00:08]}  Qxg7 {[%clk 0:01:02]} 40. Nxg7 {[%clk 0:00:08]}  Kxg7 {[%clk 0:01:03]} 41. gxf4 {[%clk 0:00:09]}  Kf6 {[%clk 0:01:03]} 42. Kg2 {[%clk 0:00:09]} 1-0


[Site "https://www.chess.com"]

[Event "Titled Tuesday Blitz March 14 Early 2023"]
[White "Smirnov, Pavel"]
[Black "Tokhirjonova, Gulrukhbegim"]
[WhiteFideId "4123425"]
[BlackFideId "14203626"]
[WhiteElo "2519"]
[BlackElo "2268"]
[Result "1-0"]
[Round "05"]
[TimeControl "180+2"]
[Date "2023.03.14"]
[WhiteClock "0:00:19"]
[BlackClock "0:00:02"]

1. d4 {[%clk 0:03:00]}  Nf6 {[%clk 0:02:50]} 2. c4 {[%clk 0:03:00]}  g6 {[%clk 0:02:50]} 3. g3 {[%clk 0:03:00]}  Bg7 {[%clk 0:02:49]} 4. Nf3 {[%clk 0:03:01]}  d5 {[%clk 0:02:49]} 5. Bg2 {[%clk 0:03:02]}  O-O {[%clk 0:02:47]} 6. cxd5 {[%clk 0:02:58]}  Nxd5 {[%clk 0:02:46]} 7. O-O {[%clk 0:02:53]}  Bf5 {[%clk 0:02:39]} 8. Nh4 {[%clk 0:02:38]}  Bg4 {[%clk 0:02:30]} 9. h3 {[%clk 0:02:36]}  Bc8 {[%clk 0:02:30]} 10. e4 {[%clk 0:02:32]}  Nb6 {[%clk 0:02:27]} 11. Nf3 {[%clk 0:02:33]}  c5 {[%clk 0:02:26]} 12. d5 {[%clk 0:02:29]}  e6 {[%clk 0:02:24]} 13. Nc3 {[%clk 0:02:12]}  Na6 {[%clk 0:02:23]} 14. Bg5 {[%clk 0:02:08]}  Qd7 {[%clk 0:02:15]} 15. Qd2 {[%clk 0:02:01]}  exd5 {[%clk 0:02:10]} 16. Nxd5 {[%clk 0:01:56]}  Nxd5 {[%clk 0:01:57]} 17. exd5 {[%clk 0:01:57]}  Nb4 {[%clk 0:01:44]} 18. d6 {[%clk 0:01:54]}  Qb5 {[%clk 0:01:36]} 19. Be7 {[%clk 0:01:51]}  Re8 {[%clk 0:01:34]} 20. Rad1 {[%clk 0:01:43]}  Bd7 {[%clk 0:01:31]} 21. Ng5 {[%clk 0:01:34]}  h6 {[%clk 0:01:24]} 22. Nxf7 {[%clk 0:01:29]}  Kxf7 {[%clk 0:01:23]} 23. a3 {[%clk 0:01:29]}  Kg8 {[%clk 0:00:57]} 24. axb4 {[%clk 0:01:27]}  Qxb4 {[%clk 0:00:53]} 25. Qxb4 {[%clk 0:01:21]}  cxb4 {[%clk 0:00:53]} 26. Bxb7 {[%clk 0:01:18]}  Rab8 {[%clk 0:00:53]} 27. Bd5+ {[%clk 0:01:18]}  Kh7 {[%clk 0:00:53]} 28. b3 {[%clk 0:01:16]}  Bxh3 {[%clk 0:00:47]} 29. Rfe1 {[%clk 0:01:15]}  Bd7 {[%clk 0:00:46]} 30. Re4 {[%clk 0:00:56]}  Bf5 {[%clk 0:00:36]} 31. Rc4 {[%clk 0:00:55]}  Rec8 {[%clk 0:00:34]} 32. Rc7 {[%clk 0:00:52]}  Rxc7 {[%clk 0:00:19]} 33. dxc7 {[%clk 0:00:51]}  Rc8 {[%clk 0:00:13]} 34. Bd8 {[%clk 0:00:51]}  Be5 {[%clk 0:00:12]} 35. Bb7 {[%clk 0:00:50]}  Rxc7 {[%clk 0:00:11]} 36. Bxc7 {[%clk 0:00:50]}  Bxc7 {[%clk 0:00:12]} 37. Be4 {[%clk 0:00:45]}  Bb6 {[%clk 0:00:07]} 38. Bxf5 {[%clk 0:00:44]}  gxf5 {[%clk 0:00:08]} 39. Kg2 {[%clk 0:00:45]}  Kg6 {[%clk 0:00:08]} 40. Kf3 {[%clk 0:00:45]}  Kg5 {[%clk 0:00:09]} 41. Rd6 {[%clk 0:00:45]}  h5 {[%clk 0:00:09]} 42. Rc6 {[%clk 0:00:42]}  h4 {[%clk 0:00:09]} 43. gxh4+ {[%clk 0:00:42]}  Kxh4 {[%clk 0:00:10]} 44. Rc4+ {[%clk 0:00:43]}  Kg5 {[%clk 0:00:10]} 45. Rxb4 {[%clk 0:00:43]}  Kf6 {[%clk 0:00:10]} 46. Rb5 {[%clk 0:00:42]}  Ke6 {[%clk 0:00:11]} 47. Ke2 {[%clk 0:00:38]}  Kf6 {[%clk 0:00:10]} 48. f4 {[%clk 0:00:37]}  Bc7 {[%clk 0:00:07]} 49. Kf3 {[%clk 0:00:37]}  Bb6 {[%clk 0:00:07]} 50. Rd5 {[%clk 0:00:37]}  Ke6 {[%clk 0:00:08]} 51. Rd1 {[%clk 0:00:37]}  Kf6 {[%clk 0:00:07]} 52. Rh1 {[%clk 0:00:37]}  Ke6 {[%clk 0:00:07]} 53. Rh6+ {[%clk 0:00:37]}  Ke7 {[%clk 0:00:06]} 54. b4 {[%clk 0:00:37]}  Bc7 {[%clk 0:00:05]} 55. b5 {[%clk 0:00:37]}  Bb6 {[%clk 0:00:06]} 56. Rg6 {[%clk 0:00:36]}  Bc5 {[%clk 0:00:05]} 57. Rc6 {[%clk 0:00:34]}  Bb6 {[%clk 0:00:05]} 58. Kg3 {[%clk 0:00:34]}  Be3 {[%clk 0:00:05]} 59. Kf3 {[%clk 0:00:30]}  Bb6 {[%clk 0:00:05]} 60. Ke2 {[%clk 0:00:30]}  Bd4 {[%clk 0:00:04]} 61. Kd3 {[%clk 0:00:30]}  Bb6 {[%clk 0:00:05]} 62. Kc4 {[%clk 0:00:30]}  Be3 {[%clk 0:00:05]} 63. Ra6 {[%clk 0:00:28]}  Bxf4 {[%clk 0:00:03]} 64. Rxa7+ {[%clk 0:00:27]}  Kd6 {[%clk 0:00:03]} 65. Rf7 {[%clk 0:00:22]}  Ke6 {[%clk 0:00:03]} 66. Rh7 {[%clk 0:00:22]}  Be3 {[%clk 0:00:02]} 67. Kd3 {[%clk 0:00:19]} 1-0


[Site "https://www.chess.com"]

[Event "Titled Tuesday Blitz March 14 Early 2023"]
[White "Loiacono, Antonio"]
[Black "Tanenbaum, Zachary"]
[WhiteFideId "895415"]
[BlackFideId "2060850"]
[WhiteElo "2257"]
[BlackElo "2175"]
[Result "0-1"]
[Round "05"]
[TimeControl "180+2"]
[Date "2023.03.14"]
[WhiteClock "0:00:21"]
[BlackClock "0:00:09"]

1. e4 {[%clk 0:03:00]}  e5 {[%clk 0:02:59]} 2. Nf3 {[%clk 0:03:01]}  Nc6 {[%clk 0:02:59]} 3. Nc3 {[%clk 0:03:01]}  Nf6 {[%clk 0:02:59]} 4. Bb5 {[%clk 0:03:01]}  Bd6 {[%clk 0:02:58]} 5. d3 {[%clk 0:03:01]}  a6 {[%clk 0:02:57]} 6. Bxc6 {[%clk 0:03:01]}  dxc6 {[%clk 0:02:57]} 7. h3 {[%clk 0:03:02]}  O-O {[%clk 0:02:54]} 8. O-O {[%clk 0:03:02]}  Qe7 {[%clk 0:02:51]} 9. Nd2 {[%clk 0:03:02]}  Be6 {[%clk 0:02:43]} 10. Nc4 {[%clk 0:03:01]}  h6 {[%clk 0:02:32]} 11. Nxd6 {[%clk 0:02:58]}  cxd6 {[%clk 0:02:32]} 12. f4 {[%clk 0:02:56]}  exf4 {[%clk 0:02:30]} 13. Bxf4 {[%clk 0:02:57]}  d5 {[%clk 0:02:29]} 14. e5 {[%clk 0:02:42]}  Nd7 {[%clk 0:02:28]} 15. d4 {[%clk 0:02:42]}  f6 {[%clk 0:02:29]} 16. exf6 {[%clk 0:02:42]}  Rxf6 {[%clk 0:02:29]} 17. Qd2 {[%clk 0:02:37]}  Raf8 {[%clk 0:02:26]} 18. Be3 {[%clk 0:02:31]}  Re8 {[%clk 0:02:05]} 19. Rxf6 {[%clk 0:02:29]}  Nxf6 {[%clk 0:02:06]} 20. Bf4 {[%clk 0:02:26]}  Qf7 {[%clk 0:01:59]} 21. Re1 {[%clk 0:02:23]}  Qg6 {[%clk 0:01:57]} 22. Kh1 {[%clk 0:02:19]}  Bf5 {[%clk 0:01:56]} 23. Rxe8+ {[%clk 0:02:18]}  Nxe8 {[%clk 0:01:57]} 24. Na4 {[%clk 0:02:09]}  Bxc2 {[%clk 0:01:55]} 25. Nc5 {[%clk 0:02:09]}  b6 {[%clk 0:01:34]} 26. Nxa6 {[%clk 0:02:08]}  Be4 {[%clk 0:01:34]} 27. Nb4 {[%clk 0:02:02]}  Qe6 {[%clk 0:01:17]} 28. Kh2 {[%clk 0:02:01]}  Nf6 {[%clk 0:01:17]} 29. Bc7 {[%clk 0:01:52]}  c5 {[%clk 0:01:16]} 30. Nc2 {[%clk 0:01:48]}  Qf5 {[%clk 0:00:43]} 31. Ne3 {[%clk 0:01:41]}  Qg5 {[%clk 0:00:43]} 32. dxc5 {[%clk 0:01:37]}  bxc5 {[%clk 0:00:44]} 33. Qf2 {[%clk 0:01:33]}  d4 {[%clk 0:00:43]} 34. Nf1 {[%clk 0:01:29]}  Qh5 {[%clk 0:00:34]} 35. Kg1 {[%clk 0:01:22]}  Qd1 {[%clk 0:00:33]} 36. Be5 {[%clk 0:01:20]}  Nd5 {[%clk 0:00:18]} 37. Qg3 {[%clk 0:01:13]}  g5 {[%clk 0:00:18]} 38. Qa3 {[%clk 0:00:55]}  Qe2 {[%clk 0:00:08]} 39. Qg3 {[%clk 0:00:28]}  Bxg2 {[%clk 0:00:07]} 40. Qxg2 {[%clk 0:00:26]}  Qxe5 {[%clk 0:00:08]} 41. Ng3 {[%clk 0:00:26]}  Nf4 {[%clk 0:00:07]} 42. Qa8+ {[%clk 0:00:26]}  Kf7 {[%clk 0:00:06]} 43. Qb7+ {[%clk 0:00:26]}  Kg6 {[%clk 0:00:04]} 44. Qc6+ {[%clk 0:00:24]}  Qe6 {[%clk 0:00:04]} 45. Qxe6+ {[%clk 0:00:21]}  Nxe6 {[%clk 0:00:05]} 46. Kf2 {[%clk 0:00:21]}  c4 {[%clk 0:00:05]} 47. Kf3 {[%clk 0:00:21]}  Nc5 {[%clk 0:00:04]} 48. Ne2 {[%clk 0:00:21]}  d3 {[%clk 0:00:04]} 49. Nc3 {[%clk 0:00:21]}  Kf5 {[%clk 0:00:04]} 50. a4 {[%clk 0:00:21]}  h5 {[%clk 0:00:04]} 51. a5 {[%clk 0:00:21]}  g4+ {[%clk 0:00:05]} 52. hxg4+ {[%clk 0:00:22]}  hxg4+ {[%clk 0:00:06]} 53. Ke3 {[%clk 0:00:23]}  g3 {[%clk 0:00:06]} 54. Nd1 {[%clk 0:00:19]}  Kg4 {[%clk 0:00:06]} 55. Nc3 {[%clk 0:00:17]}  Kh3 {[%clk 0:00:06]} 56. Nd5 {[%clk 0:00:16]}  g2 {[%clk 0:00:06]} 57. Nf4+ {[%clk 0:00:17]}  Kg3 {[%clk 0:00:06]} 58. Nxg2 {[%clk 0:00:17]}  Kxg2 {[%clk 0:00:07]} 59. Kd2 {[%clk 0:00:17]}  Kf2 {[%clk 0:00:07]} 60. a6 {[%clk 0:00:12]}  Nxa6 {[%clk 0:00:07]} 61. b3 {[%clk 0:00:13]}  cxb3 {[%clk 0:00:06]} 62. Kxd3 {[%clk 0:00:14]}  Nc5+ {[%clk 0:00:06]} 63. Kc3 {[%clk 0:00:14]}  Ke3 {[%clk 0:00:06]} 64. Kb2 {[%clk 0:00:15]}  Kd3 {[%clk 0:00:06]} 65. Kb1 {[%clk 0:00:16]}  Kc3 {[%clk 0:00:06]} 66. Kc1 {[%clk 0:00:17]}  Ne4 {[%clk 0:00:07]} 67. Kb1 {[%clk 0:00:18]}  Nd2+ {[%clk 0:00:07]} 68. Kc1 {[%clk 0:00:19]}  b2+ {[%clk 0:00:07]} 69. Kd1 {[%clk 0:00:19]}  b1=Q+ {[%clk 0:00:08]} 70. Ke2 {[%clk 0:00:20]}  Qf1+ {[%clk 0:00:08]} 71. Ke3 {[%clk 0:00:21]}  Qf3# {[%clk 0:00:09]} 0-1


[Site "https://www.chess.com"]

[Event "Titled Tuesday Blitz March 14 Early 2023"]
[White "Wartiovaara, Oliver"]
[Black "Liyanage, Ranindu Dilshan"]
[WhiteFideId "513024"]
[BlackFideId "9915834"]
[WhiteElo "2214"]
[BlackElo "2199"]
[Result "0-1"]
[Round "05"]
[TimeControl "180+2"]
[Date "2023.03.14"]
[WhiteClock "0:00:07"]
[BlackClock "0:00:25"]

1. e4 {[%clk 0:03:00]}  g6 {[%clk 0:02:57]} 2. d4 {[%clk 0:03:00]}  Bg7 {[%clk 0:02:58]} 3. Nf3 {[%clk 0:02:58]}  d6 {[%clk 0:02:59]} 4. Be2 {[%clk 0:02:58]}  Nf6 {[%clk 0:02:58]} 5. Nc3 {[%clk 0:02:58]}  O-O {[%clk 0:02:59]} 6. O-O {[%clk 0:02:58]}  Nc6 {[%clk 0:02:55]} 7. d5 {[%clk 0:02:46]}  Nb8 {[%clk 0:02:54]} 8. a4 {[%clk 0:02:39]}  c6 {[%clk 0:02:52]} 9. a5 {[%clk 0:02:29]}  Qc7 {[%clk 0:02:49]} 10. Nd4 {[%clk 0:02:23]}  Nbd7 {[%clk 0:02:41]} 11. Be3 {[%clk 0:02:17]}  cxd5 {[%clk 0:02:35]} 12. exd5 {[%clk 0:02:17]}  a6 {[%clk 0:02:35]} 13. Nb3 {[%clk 0:02:05]}  Nc5 {[%clk 0:02:11]} 14. Nxc5 {[%clk 0:02:00]}  dxc5 {[%clk 0:02:12]} 15. Qd3 {[%clk 0:01:46]}  Bf5 {[%clk 0:02:05]} 16. Qc4 {[%clk 0:01:46]}  Nd7 {[%clk 0:02:06]} 17. Na4 {[%clk 0:01:34]}  Rac8 {[%clk 0:01:59]} 18. g4 {[%clk 0:01:22]}  Ne5 {[%clk 0:01:59]} 19. Qxc5 {[%clk 0:01:16]}  Qd8 {[%clk 0:01:29]} 20. gxf5 {[%clk 0:00:41]}  Rxc5 {[%clk 0:01:28]} 21. Nxc5 {[%clk 0:00:42]}  Qxd5 {[%clk 0:01:22]} 22. Rfd1 {[%clk 0:00:39]}  Nf3+ {[%clk 0:01:10]} 23. Bxf3 {[%clk 0:00:30]}  Qxf3 {[%clk 0:01:10]} 24. fxg6 {[%clk 0:00:30]}  fxg6 {[%clk 0:01:00]} 25. c3 {[%clk 0:00:20]}  Be5 {[%clk 0:00:55]} 26. Nd3 {[%clk 0:00:19]}  Bd6 {[%clk 0:00:52]} 27. Bc5 {[%clk 0:00:16]}  Bb8 {[%clk 0:00:48]} 28. Bxe7 {[%clk 0:00:15]}  Re8 {[%clk 0:00:33]} 29. Bh4 {[%clk 0:00:13]}  h5 {[%clk 0:00:33]} 30. Bg3 {[%clk 0:00:13]}  h4 {[%clk 0:00:26]} 31. Bxb8 {[%clk 0:00:12]}  h3 {[%clk 0:00:26]} 32. Nf4 {[%clk 0:00:08]}  Rxb8 {[%clk 0:00:25]} 33. Rd4 {[%clk 0:00:07]}  Rf8 {[%clk 0:00:25]} 0-1


[Site "https://www.chess.com"]

[Event "Titled Tuesday Blitz March 14 Early 2023"]
[White "Baghdasaryan, Vahe"]
[Black "Kvaloy, Aksel Bu"]
[WhiteFideId "13303139"]
[BlackFideId "1528815"]
[WhiteElo "2216"]
[BlackElo "2208"]
[Result "1/2-1/2"]
[Round "05"]
[TimeControl "180+2"]
[Date "2023.03.14"]
[WhiteClock "0:00:01"]
[BlackClock "0:00:02"]

1. e4 {[%clk 0:03:00]}  e5 {[%clk 0:02:58]} 2. Nf3 {[%clk 0:02:53]}  Nf6 {[%clk 0:02:56]} 3. Nc3 {[%clk 0:02:37]}  Nc6 {[%clk 0:02:56]} 4. d4 {[%clk 0:02:36]}  exd4 {[%clk 0:02:56]} 5. Nxd4 {[%clk 0:02:37]}  Bb4 {[%clk 0:02:57]} 6. Nxc6 {[%clk 0:02:35]}  bxc6 {[%clk 0:02:58]} 7. Bd3 {[%clk 0:02:35]}  d5 {[%clk 0:02:56]} 8. exd5 {[%clk 0:02:35]}  O-O {[%clk 0:02:56]} 9. O-O {[%clk 0:02:36]}  cxd5 {[%clk 0:02:56]} 10. h3 {[%clk 0:02:36]}  Bd6 {[%clk 0:02:50]} 11. Qf3 {[%clk 0:02:30]}  Bb7 {[%clk 0:02:50]} 12. Bg5 {[%clk 0:02:24]}  Rb8 {[%clk 0:02:38]} 13. Qf5 {[%clk 0:02:08]}  Bc8 {[%clk 0:02:24]} 14. Qf3 {[%clk 0:01:46]}  c6 {[%clk 0:02:23]} 15. b3 {[%clk 0:01:44]}  Be5 {[%clk 0:02:18]} 16. Bd2 {[%clk 0:01:37]}  c5 {[%clk 0:02:10]} 17. Rae1 {[%clk 0:01:34]}  Bxc3 {[%clk 0:02:00]} 18. Bxc3 {[%clk 0:01:33]}  d4 {[%clk 0:02:01]} 19. Bd2 {[%clk 0:01:32]}  Bb7 {[%clk 0:01:54]} 20. Qg3 {[%clk 0:01:27]}  Kh8 {[%clk 0:01:51]} 21. Bg5 {[%clk 0:01:18]}  Qd7 {[%clk 0:01:44]} 22. Qh4 {[%clk 0:01:12]}  Qc6 {[%clk 0:01:41]} 23. f3 {[%clk 0:01:09]}  h6 {[%clk 0:01:33]} 24. Bxh6 {[%clk 0:01:09]}  gxh6 {[%clk 0:01:29]} 25. Qxh6+ {[%clk 0:01:10]}  Kg8 {[%clk 0:01:30]} 26. Re5 {[%clk 0:00:50]}  Ne4 {[%clk 0:01:28]} 27. Qh4 {[%clk 0:00:28]}  Qf6 {[%clk 0:00:49]} 28. Qg4+ {[%clk 0:00:26]}  Qg6 {[%clk 0:00:50]} 29. Qf4 {[%clk 0:00:19]}  f5 {[%clk 0:00:36]} 30. fxe4 {[%clk 0:00:18]}  fxe4 {[%clk 0:00:36]} 31. Rg5 {[%clk 0:00:17]}  Rxf4 {[%clk 0:00:36]} 32. Rxg6+ {[%clk 0:00:17]}  Kh7 {[%clk 0:00:18]} 33. Rxf4 {[%clk 0:00:18]}  Kxg6 {[%clk 0:00:18]} 34. Bxe4+ {[%clk 0:00:16]}  Kg5 {[%clk 0:00:19]} 35. Rg4+ {[%clk 0:00:16]}  Kh5 {[%clk 0:00:20]} 36. Bxb7 {[%clk 0:00:11]}  Rxb7 {[%clk 0:00:21]} 37. Re4 {[%clk 0:00:11]}  Kg5 {[%clk 0:00:20]} 38. Re5+ {[%clk 0:00:11]}  Kf4 {[%clk 0:00:20]} 39. Rxc5 {[%clk 0:00:12]}  Ke3 {[%clk 0:00:21]} 40. Rd5 {[%clk 0:00:10]}  Rc7 {[%clk 0:00:21]} 41. h4 {[%clk 0:00:08]}  Rxc2 {[%clk 0:00:21]} 42. h5 {[%clk 0:00:09]}  d3 {[%clk 0:00:22]} 43. h6 {[%clk 0:00:09]}  Rc6 {[%clk 0:00:16]} 44. h7 {[%clk 0:00:07]}  Rh6 {[%clk 0:00:17]} 45. Rd7 {[%clk 0:00:06]}  d2 {[%clk 0:00:15]} 46. Re7+ {[%clk 0:00:03]}  Kd3 {[%clk 0:00:16]} 47. Rd7+ {[%clk 0:00:03]}  Kc2 {[%clk 0:00:11]} 48. Rc7+ {[%clk 0:00:03]}  Kb2 {[%clk 0:00:10]} 49. Rd7 {[%clk 0:00:04]}  Kc1 {[%clk 0:00:10]} 50. Rc7+ {[%clk 0:00:03]}  Kd1 {[%clk 0:00:10]} 51. Rd7 {[%clk 0:00:03]}  Kc1 {[%clk 0:00:03]} 52. Rc7+ {[%clk 0:00:03]}  Kb2 {[%clk 0:00:03]} 53. Rd7 {[%clk 0:00:03]}  Kc3 {[%clk 0:00:03]} 54. Rc7+ {[%clk 0:00:04]}  Kd3 {[%clk 0:00:03]} 55. Rd7+ {[%clk 0:00:04]}  Ke3 {[%clk 0:00:04]} 56. Re7+ {[%clk 0:00:01]}  Kf4 {[%clk 0:00:02]} 57. Rd7 {[%clk 0:00:01]}  Ke3 {[%clk 0:00:02]} 1/2-1/2


[Site "https://www.chess.com"]

[Event "Titled Tuesday Blitz March 14 Early 2023"]
[White "Rom, Jasper"]
[Black "Goltsev, Dmitry"]
[WhiteFideId "2023733"]
[BlackFideId "24176710"]
[WhiteElo "2233"]
[BlackElo "2336"]
[Result "0-1"]
[Round "05"]
[TimeControl "180+2"]
[Date "2023.03.14"]
[WhiteClock "0:00:02"]
[BlackClock "0:00:51"]

1. e4 {[%clk 0:02:54]}  e6 {[%clk 0:02:07]} 2. d4 {[%clk 0:02:54]}  d5 {[%clk 0:02:08]} 3. Bd3 {[%clk 0:02:54]}  c5 {[%clk 0:02:08]} 4. exd5 {[%clk 0:02:53]}  exd5 {[%clk 0:02:08]} 5. Nf3 {[%clk 0:02:52]}  Nf6 {[%clk 0:02:08]} 6. O-O {[%clk 0:02:52]}  Be7 {[%clk 0:02:08]} 7. dxc5 {[%clk 0:02:52]}  Bxc5 {[%clk 0:02:09]} 8. Re1+ {[%clk 0:02:52]}  Be6 {[%clk 0:02:09]} 9. Be3 {[%clk 0:02:47]}  Bxe3 {[%clk 0:02:06]} 10. Rxe3 {[%clk 0:02:48]}  Qb6 {[%clk 0:02:04]} 11. Nc3 {[%clk 0:02:11]}  O-O {[%clk 0:01:59]} 12. Nd4 {[%clk 0:02:04]}  Nbd7 {[%clk 0:01:58]} 13. Rb1 {[%clk 0:01:47]}  Rfe8 {[%clk 0:01:53]} 14. h3 {[%clk 0:01:37]}  Rac8 {[%clk 0:01:51]} 15. Nce2 {[%clk 0:01:32]}  Nc5 {[%clk 0:01:48]} 16. Bf5 {[%clk 0:01:27]}  Nfe4 {[%clk 0:01:42]} 17. c3 {[%clk 0:01:15]}  Bxf5 {[%clk 0:01:40]} 18. Nxf5 {[%clk 0:01:14]}  Nxf2 {[%clk 0:01:33]} 19. Kxf2 {[%clk 0:01:07]}  Rxe3 {[%clk 0:01:28]} 20. Nxe3 {[%clk 0:01:05]}  Ne4+ {[%clk 0:01:28]} 21. Kf3 {[%clk 0:00:53]}  Re8 {[%clk 0:01:03]} 22. Qd4 {[%clk 0:00:15]}  Qxd4 {[%clk 0:00:54]} 23. Nxd4 {[%clk 0:00:07]}  Nd2+ {[%clk 0:00:54]} 24. Kf2 {[%clk 0:00:07]}  Nxb1 {[%clk 0:00:54]} 25. Nxd5 {[%clk 0:00:07]}  Nd2 {[%clk 0:00:52]} 26. Nf5 {[%clk 0:00:02]}  Nc4 {[%clk 0:00:51]} 0-1


[Site "https://www.chess.com"]

[Event "Titled Tuesday Blitz March 14 Early 2023"]
[White "Rodchenkov, Sergey D."]
[Black "Samant Aditya S"]
[WhiteFideId "4168712"]
[BlackFideId "35080580"]
[WhiteElo "2277"]
[BlackElo "2362"]
[Result "0-1"]
[Round "05"]
[TimeControl "180+2"]
[Date "2023.03.14"]
[WhiteClock "0:00:12"]
[BlackClock "0:00:11"]

1. e4 {[%clk 0:03:00]}  c5 {[%clk 0:02:55]} 2. Nf3 {[%clk 0:03:01]}  d6 {[%clk 0:02:55]} 3. d4 {[%clk 0:03:01]}  cxd4 {[%clk 0:02:56]} 4. Nxd4 {[%clk 0:03:02]}  Nf6 {[%clk 0:02:56]} 5. Nc3 {[%clk 0:03:03]}  e5 {[%clk 0:02:57]} 6. Nf5 {[%clk 0:02:59]}  Nxe4 {[%clk 0:02:12]} 7. Nxg7+ {[%clk 0:02:45]}  Bxg7 {[%clk 0:02:13]} 8. Nxe4 {[%clk 0:02:45]}  d5 {[%clk 0:02:14]} 9. Bg5 {[%clk 0:01:15]}  Qa5+ {[%clk 0:01:31]} 10. c3 {[%clk 0:01:05]}  dxe4 {[%clk 0:01:26]} 11. Bb5+ {[%clk 0:01:05]}  Nc6 {[%clk 0:01:18]} 12. Bxc6+ {[%clk 0:00:45]}  bxc6 {[%clk 0:01:19]} 13. Qd6 {[%clk 0:00:45]}  f6 {[%clk 0:00:48]} 14. Bxf6 {[%clk 0:00:30]}  Bxf6 {[%clk 0:00:48]} 15. Qxf6 {[%clk 0:00:31]}  Rf8 {[%clk 0:00:44]} 16. Qxc6+ {[%clk 0:00:31]}  Ke7 {[%clk 0:00:43]} 17. Qxa8 {[%clk 0:00:26]}  Qb6 {[%clk 0:00:44]} 18. Qxe4 {[%clk 0:00:20]}  Qxf2+ {[%clk 0:00:44]} 19. Kd1 {[%clk 0:00:19]}  Bf5 {[%clk 0:00:12]} 20. Qxe5+ {[%clk 0:00:12]}  Kf7 {[%clk 0:00:12]} 21. Qe2 {[%clk 0:00:12]}  Rd8+ {[%clk 0:00:11]} 0-1


[Site "https://www.chess.com"]